Workbook

Sheet Density (birds)
A1: Diving birds - density at risk depth | C1: from previous sheets | D1: turbine data | E1: animal data | F1: intermediate results | G1: results
Q2: other months | R2: Jun/July
A3: Species name | G3: eider | I3: red-throated diver | K3: gannet | M3: cormorant | O3: black guillemot | Q3: european shag | R3: european shag
A4: Observed density (per m2) | C4: DS | D4: birds m-2 | G4: 3.075437608e-07 | I4: 1.08e-08 | K4: 3.667e-08 | M4: 6.62245e-08 | O4: 5.71e-07
A5: correct for proportion underwater? | G5: yes | I5: yes | K5: yes | M5: yes | O5: yes | Q5: yes | R5: yes
A7: Proportion of diving birds visible at surface
A8: choose method for calculating overall dive frequency: | G8: method 1 | I8: method 1 | K8: method 2 | M8: method 1 | O8: method 1 | Q8: method 2 | R8: method 2
A10: method 1 | B10: proportion of time foraging | C10: P2 | G10: 0.6 | I10: 0.4 | K10: 0.558 | M10: 1 | O10: 0.37333 | Q10: 0.37333 | R10: 0.37333
B11: dive frequency foraging | C11: F2 | D11: dives s-1 | G11: 0.01912 | I11: 0.0309 | M11: 0.006852 | O11: 0.0092 | Q11: 0.00995 | R11: 0.00995
A13: method 2 | B13: foraging trips per day | C13: G | D13: trips/day | G13: 3 | I13: 3 | M13: 3 | O13: 3 | Q13: 1 | R13: 3
B14: dives per foraging trip | C14: U | D14: dives/trip | G14: 6 | I14: 6 | M14: 6 | O14: 6 | Q14: 26.6 | R14: 26.6
A16: overall dive frequency | C16: F | D16: dives s-1 | F16: P2F2 or GU/(24*3600) | G16: =IF(G$8="method 1",G10*G11,IF(G$8="method 2",G13*G14/(24*3600),0)) -> 0.011472 | I16: =IF(I$8="method 1",I10*I11,IF(I$8="method 2",I13*I14/(24*3600),0)) -> 0.01236 | K16: 0.000375 | M16: =IF(M$8="method 1",M10*M11,IF(M$8="method 2",M13*M14/(24*3600),0)) -> 0.006852 | O16: =IF(O$8="method 1",O10*O11,IF(O$8="method 2",O13*O14/(24*3600),0)) -> 0.003434636 | Q16: =IF(Q$8="method 1",Q10*Q11,IF(Q$8="method 2",Q13*Q14/(24*3600),0)) -> 0.0003078703704 | R16: =IF(R$8="method 1",R10*R11,IF(R$8="method 2",R13*R14/(24*3600),0)) -> 0.0009236111111
A17: mean underwater duration of dive | C17: tu | D17: s | G17: 25.9 | I17: 26.1 | K17: 10.9 | M17: 40 | O17: 77.1 | Q17: 41.7 | R17: 41.7
A18: watch period | C18: tw | D18: s | E18: 0 | G18: =$E18 -> 0 | I18: =$E18 -> 0 | K18: =$E18 -> 0 | M18: =E18 -> 0 | O18: =$E18 -> 0 | Q18: =$E18 -> 0 | R18: =$E18 -> 0
A19: proportion visible at surface | F19: 1-F*max(0,tu-tw) | G19: =IF(G5="yes",1-G16*MAX(0,(G17-G18)),1) -> 0.7028752 | I19: =IF(I5="yes",1-I16*MAX(0,(I17-I18)),1) -> 0.677404 | K19: =IF(K5="yes",1-K10,1) -> 0.442 | M19: =IF(M5="yes",1-M16*MAX(0,(M17-M18)),1) -> 0.72592 | O19: =IF(O5="yes",1-O16*MAX(0,(O17-O18)),1) -> 0.7351895644 | Q19: =IF(Q5="yes",1-Q16*MAX(0,(Q17-Q18)),1) -> 0.9871618056 | R19: =IF(R5="yes",1-R16*MAX(0,(R17-R18)),1) -> 0.9614854167
A20: adjusted at sea density | C20: DA | D20: birds m-2 | G20: =G4/G19 -> 4.375510202e-07 | I20: =I4/I19 -> 1.594321852e-08 | K20: =K4/K19 -> 8.29638009e-08 | M20: =M4/M19 -> 9.122837227e-08 | O20: =O4/O19 -> 7.766704366e-07 | Q20: =Q4/Q19 -> 0 | R20: =R4/R19 -> 0
A22: Risk depth
A23: rotor diameter | C23: 2R | D23: m | E23: 20
A24: rotor minimum depth | D24: m | E24: 2.5
A26: Proportion of diving birds at risk depth | G26: =G3 -> eider | I26: =I3 -> red-throated diver | K26: =K3 -> gannet | M26: =M3 -> cormorant | O26: =O3 -> black guillemot | Q26: =Q3 -> european shag | R26: =R3 -> european shag
A27: vertical swim speed | C27: u | D27: m s-1 | G27: 1.65 | I27: 1.65 | K27: 1.2 | M27: 1.65 | O27: 1.48 | Q27: 1.65 | R27: 1.65
A28: plunge speed | C28: u' | D28: m s-1 | K28: 4.3
A29: depth distribution type | F29: deep, shallow or plunge-diving | G29: shallow-diving | I29: shallow-diving | K29: plunge-diving | M29: deep-diving | O29: deep-diving | Q29: deep-diving | R29: deep-diving
A30: time per dive at risk depth | C30: H | D30: s | F30: depends on dive type | G30: =IF(G29="shallow-diving",MAX(0,G17-2*$E24/G27),IF(G29="deep-diving",2*$E23/G27,IF(G29="plunge-diving",MAX(0,G17-$E24/G27-$E24/G28),error))) -> 22.86969697 | I30: =IF(I29="shallow-diving",MAX(0,I17-2*$E24/I27),IF(I29="deep-diving",2*$E23/I27,IF(I29="plunge-diving",MAX(0,I17-$E24/I27-$E24/I28),error))) -> 23.06969697 | K30: =IF(K29="shallow-diving",MAX(0,K17-2*$E24/K27),IF(K29="deep-diving",2*$E23/K27,IF(K29="plunge-diving",MAX(0,K17-$E24/K27-$E24/K28),error))) -> 8.235271318 | M30: =IF(M29="shallow-diving",MAX(0,M17-2*$E24/M27),IF(M29="deep-diving",2*$E23/M27,IF(M29="plunge-diving",MAX(0,M17-$E24/M27-$E24/M28),error))) -> 24.24242424 | O30: =IF(O29="shallow-diving",MAX(0,O17-2*$E24/O27),IF(O29="deep-diving",2*$E23/O27,IF(O29="plunge-diving",MAX(0,O17-$E24/O27-$E24/O28),error))) -> 27.02702703 | Q30: =IF(Q29="shallow-diving",MAX(0,Q17-2*$E24/Q27),IF(Q29="deep-diving",2*$E23/Q27,IF(Q29="plunge-diving",MAX(0,Q17-$E24/Q27-$E24/Q28),error))) -> 24.24242424 | R30: =IF(R29="shallow-diving",MAX(0,R17-2*$E24/R27),IF(R29="deep-diving",2*$E23/R27,IF(R29="plunge-diving",MAX(0,R17-$E24/R27-$E24/R28),error))) -> 24.24242424
A31: proportion at risk depth | C31: Q2R | F31: FH | G31: =G16*G30 -> 0.2623611636 | I31: =I16*I30 -> 0.2851414545 | K31: =K16*K30 -> 0.003088226744 | M31: =M16*M30 -> 0.1661090909 | O31: =O16*O30 -> 0.092828 | Q31: =Q16*Q30 -> 0.00746352413 | R31: =R16*R30 -> 0.02239057239
A33: Density at risk depth | C33: D | D33: birds m-3 | F33: DA Q2R /2R | G33: =G20*G31/$E23 -> 5.73981974e-09 | I33: =I20*I31/$E23 -> 2.27303626e-10 | K33: =K20*K31/$E23 -> 1.281055144e-11 | M33: =M20*M31/$E23 -> 7.576930992e-10 | O33: =O20*O31/$E23 -> 3.604838165e-09 | Q33: =Q20*Q31/$E23 -> 0 | R33: =R20*R31/$E23 -> 0
A35: available depth distribution types:
B36: deep-diving
B37: shallow-diving
B38: plunge-diving

Sheet Density (marine animals)
A1: Marine animals - density at risk depth | C1: from previous sheets | D1: turbine data | E1: animal data | F1: intermediate results | G1: results
A3: Species name | G3: harbour porpoise | I3: harbour seal | K3: grey seal | M3: minke whale | O3: basking shark
A4: Observed density (per m2) | C4: DS | D4: animals m-2 | G4: 3.398896173e-09 | I4: 3.571734086e-09 | K4: 1.055880749e-08 | M4: 2.15827531e-10 | O4: 1.08289933e-09
A5: correct for proportion underwater? | G5: yes | I5: yes | K5: yes | M5: yes | O5: no
A7: Proportion of animals visible at surface
A8: mean underwater duration of dive | C8: tu | D8: s | G8: 26.2 | I8: 180 | K8: 297 | M8: 87
A9: mean surface time | C9: ts | D9: s | G9: 3.9 | I9: 39.512 | K9: 165 | M9: 3.5
A10: overall dive frequency | C10: F | D10: dives s-1 | F10: 1/(tu+ts) | G10: =IF(G5="yes",1/(G8+G9),0) -> 0.03322259136 | I10: =IF(I5="yes",1/(I8+I9),0) -> 0.004555559605 | K10: =IF(K5="yes",1/(K8+K9),0) -> 0.002164502165 | M10: =IF(M5="yes",1/(M8+M9),0) -> 0.01104972376 | O10: =IF(O5="yes",1/(O8+O9),0) -> 0
A11: watch period | C11: tw | D11: s | E11: 10 | G11: =$E11 -> 10 | I11: =$E11 -> 10 | K11: =$E11 -> 10 | M11: =$E11 -> 10 | O11: =$E11 -> 10
A12: proportion visible at surface | F12: 1-F*max(0,tu-tw) | G12: =1-G10*MAX(0,(G8-G11)) -> 0.4617940199 | I12: =1-I10*MAX(0,(I8-I11)) -> 0.2255548672 | K12: =1-K10*MAX(0,(K8-K11)) -> 0.3787878788 | M12: =1-M10*MAX(0,(M8-M11)) -> 0.1491712707 | O12: =1-O10*MAX(0,(O8-O11)) -> 1
A13: adjusted at sea density | C13: DA | D13: animals m-2 | G13: =G4/G12 -> 7.360199626e-09 | I13: =I4/I12 -> 1.58353226e-08 | K13: =K4/K12 -> 2.787525178e-08 | M13: =M4/M12 -> 1.446843819e-09 | O13: =O4/O12 -> 1.08289933e-09
A15: Risk depth
A16: rotor diameter | C16: 2R | D16: m | E16: 25
A17: rotor minimum depth | D17: m | E17: 2.5
A18: channel depth | D18: m | E18: 30
A20: Proportion of animals at risk depth
A21: depth distribution type | G21: harbour porpoise | I21: harbour seal | K21: deep-diving | M21: uniform | O21: uniform | Q21: atlantic salmon
A22: vertical swim speed | C22: u | D22: m s-1 | K22: 1.4
A23: time per dive at risk depth | C23: H | D23: s | G23: =IF(G21="shallow-diving",MAX(0,G8-2*$E17/G22),IF(G21="deep-diving",2*$E16/G22,"")) ->  | I23: =IF(I21="shallow-diving",MAX(0,I8-2*$E17/I22),IF(I21="deep-diving",2*$E16/I22,"")) ->  | K23: =IF(K21="shallow-diving",MAX(0,K8-2*$E17/K22),IF(K21="deep-diving",2*$E16/K22,"")) -> 35.71428571 | M23: =IF(M21="shallow-diving",MAX(0,M8-2*$E17/M22),IF(M21="deep-diving",2*$E16/M22,"")) ->  | O23: =IF(O21="shallow-diving",MAX(0,O8-2*$E17/O22),IF(O21="deep-diving",2*$E16/O22,"")) ->  | Q23: =IF(Q21="shallow-diving",MAX(0,Q8-2*$E17/Q22),IF(Q21="deep-diving",2*$E16/Q22,"")) -> 
A24: proportion at risk depth | C24: Q2R | F24: FH | G24: =Q2R(G21,G22,G8,G10,$E17,$E16,$E18) -> 0.716999948 | I24: =Q2R(I21,I22,I8,I10,$E17,$E16,$E18) -> 0.5249999762 | K24: =Q2R(K21,K22,K8,K10,$E17,$E16,$E18) -> 0.07730364799 | M24: =Q2R(M21,M22,M8,M10,$E17,$E16,$E18) -> 0.8333333135 | O24: =Q2R(O21,O22,O8,O10,$E17,$E16,$E18) -> 0.8333333135 | Q24: =Q2R(Q21,Q22,Q8,Q10,$E17,$E16,$E18) -> 0.1607787013
A25: density at risk depth (per m3) | C25: D | D25: animals m-3 | F25: DA Q2R /2R | G25: =G13*G24/$E16 -> 2.1109051e-10 | I25: =I13*I24/$E16 -> 3.325417595e-10 | K25: =K13*K24/$E16 -> 8.619434605e-11 | M25: =M13*M24/$E16 -> 4.822812615e-11 | O25: =O13*O24/$E16 -> 3.609664347e-11
A27: available depth distribution types:
B28: uniform
B29: shallow-diving
B30: deep-diving
B31: harbour porpoise
B32: harbour seal
B33: grey seal
B34: atlantic salmon

Sheet ERM
A1: ERM | C1: from previous sheets | D1: turbine data | E1: animal data | F1: intermediate results | G1: results
C3: symbol | D3: units
A4: Period of assessment | D4: years | E4: 1
A5: time in period (secs) | C5: t | D5: s | E5: =IF(D4="years",E4*365*24*3600,IF(D4="months",E4*30.4*24*3600,IF(D4="weeks",E4*7*24*3600))) -> 31536000
A7: Rotor data
A8: number of rotors | C8: B | D8: m | E8: 1
A9: rotor diameter | C9: 2R | D9: m | E9: 25
A10: rotor radius | C10: R | D10: m | E10: =E9/2 -> 12.5
A11: number of blades | C11: b | E11: 3
A12: rotor blade width | C12: w | D12: m | E12: 0.75
A13: rotation speed | C13: Ω | D13: rpm | E13: 6.95
A14: mean tangential blade speed | C14: vr | D14: m s-1 | E14: =(1/2)*$E10*$E13*2*PI()/60 -> 4.548764363
A15: % time not operational | C15: nop | E15: 0.124
A16: mean current speed (m s-1) | C16: vc | D16: m s-1 | E16: 1.82
A17: mean blade speed relative to water | C17: v | D17: m s-1 | E17: =SQRT(E14*E14+E16*E16) -> 4.899352736 | F17: √ (vr2 + vc2)
A19: Animal data
A20: species | H20: harbour porpoise | J20: harbour seal | L20: grey seal | N20: minke whale | P20: basking shark | T20: eider | V20: red-throated diver | X20: gannet | Z20: cormorant | AB20: black guillemot
A21: animal density at risk depth (c/f) | C21: D | D21: m-3 | H21: ='Density (marine animals)'!G25 -> 2.1109051e-10 | J21: ='Density (marine animals)'!I25 -> 3.325417595e-10 | L21: ='Density (marine animals)'!K25 -> 8.619434605e-11 | N21: ='Density (marine animals)'!M25 -> 4.822812615e-11 | P21: ='Density (marine animals)'!O25 -> 3.609664347e-11 | T21: ='Density (birds)'!G33 -> 5.73981974e-09 | V21: ='Density (birds)'!I33 -> 2.27303626e-10 | X21: ='Density (birds)'!K33 -> 1.281055144e-11 | Z21: ='Density (birds)'!M33 -> 7.576930992e-10 | AB21: ='Density (birds)'!O33 -> 3.604838165e-09
A22: marine animal or diving bird? | H22: marine animal | J22: marine animal | L22: marine animal | N22: marine animal | P22: marine animal | T22: diving bird | V22: diving bird | X22: diving bird | Z22: diving bird | AB22: diving bird
A23: length | C23: L | D23: m | H23: 1.48 | J23: 1.41 | L23: 1.86 | N23: 8.8 | P23: 7 | T23: 0.6 | V23: 0.61 | X23: 0.94 | Z23: 0.9 | AB23: 0.31
A24: bodywidth/wingspan | C24: W | D24: m | H24: 0.32 | J24: 0.34 | L24: 0.42 | N24: 2.2 | P24: 1.75 | T24: 0.94 | V24: 1.11 | X24: 1.72 | Z24: 1.45 | AB24: 0.55
A25: swim speed (marine animals only) | C25: u0 | D25: m s-1 | H25: 1.4 | J25: 1.8 | L25: 1.8 | N25: 2.1 | P25: 1
A26: vertical swim speed | C26: u | D26: m s-1 | T26: 1.65 | V26: 1.65 | X26: 2.75 | Z26: 1.65 | AB26: 1.48
A27: shape factor | C27: f | F27: 0.5 or 0.8 | H27: 0.5 | J27: 0.5 | L27: 0.5 | N27: 0.5 | P27: 0.5 | T27: 0.5 | V27: 0.5 | X27: 0.8 | Z27: 0.5 | AB27: 0.8
A29: ERM ENCOUNTER RATE
A30: effective animal radius | C30: r | D30: m | F30: W/f | H30: =MAX(H23,H24)*H27/2 -> 0.37 | J30: =MAX(J23,J24)*J27/2 -> 0.3525 | L30: =MAX(L23,L24)*L27/2 -> 0.465 | N30: =MAX(N23,N24)*N27/2 -> 2.2 | P30: =MAX(P23,P24)*P27/2 -> 1.75 | T30: =MAX(T23,T24)*T27/2 -> 0.235 | V30: =MAX(V23,V24)*V27/2 -> 0.2775 | X30: =MAX(X23,X24)*X27/2 -> 0.688 | Z30: =MAX(Z23,Z24)*Z27/2 -> 0.3625 | AB30: =MAX(AB23,AB24)*AB27/2 -> 0.22
A31: effective blade area | C31: A | D31: m2 | F31: (w+2r )(R+r) bB | H31: =$E8*$E11*($E12+2*H30)*($E10+H30) -> 57.5289 | J31: =$E8*$E11*($E12+2*J30)*($E10+J30) -> 56.1011625 | L31: =$E8*$E11*($E12+2*L30)*($E10+L30) -> 65.3436 | N31: =$E8*$E11*($E12+2*N30)*($E10+N30) -> 227.115 | P31: =$E8*$E11*($E12+2*P30)*($E10+P30) -> 181.6875 | T31: =$E8*$E11*($E12+2*T30)*($E10+T30) -> 46.6101 | V31: =$E8*$E11*($E12+2*V30)*($E10+V30) -> 50.0239125 | X31: =$E8*$E11*($E12+2*X30)*($E10+X30) -> 84.113064 | Z31: =$E8*$E11*($E12+2*Z30)*($E10+Z30) -> 56.9165625 | AB31: =$E8*$E11*($E12+2*AB30)*($E10+AB30) -> 45.4104
A32: swim speed used | C32: u or u0 | F32: u for birds; otherwise u0 | H32: =IF(H22="diving bird",H26,H25) -> 1.4 | J32: =IF(J22="diving bird",J26,J25) -> 1.8 | L32: =IF(L22="diving bird",L26,L25) -> 1.8 | N32: =IF(N22="diving bird",N26,N25) -> 2.1 | P32: =IF(P22="diving bird",P26,P25) -> 1 | T32: =IF(T22="diving bird",T26,T25) -> 1.65 | V32: =IF(V22="diving bird",V26,V25) -> 1.65 | X32: =IF(X22="diving bird",X26,X25) -> 2.75 | Z32: =IF(Z22="diving bird",Z26,Z25) -> 1.65 | AB32: =IF(AB22="diving bird",AB26,AB25) -> 1.48
A33: encounter rate (unit density) | D33: animals s-1 | F33: A (u2+3v2)/3v | H33: =H31*(H32*H32+3*$E14*$E14)/(3*$E14) -> 269.9482141 | J33: =J31*(J32*J32+3*$E14*$E14)/(3*$E14) -> 268.5109059 | L33: =L31*(L32*L32+3*$E14*$E14)/(3*$E14) -> 312.7469815 | N33: =N31*(N32*N32+3*$E14*$E14)/(3*$E14) -> 1106.488166 | P33: =P31*(P32*P32+3*$E14*$E14)/(3*$E14) -> 839.7676804 | T33: =T31*(T32*T32+3*$E17*$E17)/(3*$E17) -> 236.9928422 | V33: =V31*(V32*V32+3*$E17*$E17)/(3*$E17) -> 254.3506493 | X33: =X31*(X32*X32+3*$E17*$E17)/(3*$E17) -> 455.3777392 | Z33: =Z31*(Z32*Z32+3*$E17*$E17)/(3*$E17) -> 289.3968885 | AB33: =AB31*(AB32*AB32+3*$E17*$E17)/(3*$E17) -> 229.2489199
A34: encounter rate (per sec) | C34: CERM | D34: animals s-1 | F34: A D (u2+3v2)/3v | H34: =H33*H21 -> 5.698350617e-08 | J34: =J33*J21 -> 8.929108908e-08 | L34: =L33*L21 -> 2.695702155e-08 | N34: =N33*N21 -> 5.336385084e-08 | P34: =P33*P21 -> 3.031279456e-08 | T34: =T33*T21 -> 1.360296194e-06 | V34: =V33*V21 -> 5.781482486e-08 | X34: =X33*X21 -> 5.833639951e-09 | Z34: =Z33*Z21 -> 2.192740253e-07 | AB34: =AB33*AB21 -> 8.264052557e-07
A35: encounter rate (per period) | D35: animals | F35: CERM t (1-nop) | H35: =H34*$E5*(1-$E15) -> 1.574199901 | J35: =J34*$E5*(1-$E15) -> 2.466714196 | L35: =L34*$E5*(1-$E15) -> 0.7447021692 | N35: =N34*$E5*(1-$E15) -> 1.474204982 | P35: =P34*$E5*(1-$E15) -> 0.8374071973 | T35: =T34*$E5*(1-$E15) -> 37.57891147 | V35: =V34*$E5*(1-$E15) -> 1.597165525 | X35: =X34*$E5*(1-$E15) -> 0.1611574305 | Z35: =Z34*$E5*(1-$E15) -> 6.057562481 | AB35: =AB34*$E5*(1-$E15) -> 22.82988814

Sheet CRM
A1: CRM | F1: blade profile: | G1: r/R | H1: c/C | K1: from previous sheets | M1: turbine data | O1: animal data | Q1: intermediate results | S1: results
G2: 0 | H2: 0.69
C3: symbol | D3: units | G3: 0.05 | H3: 0.73
A4: Period of assessment | D4: years | E4: 1 | G4: =G3+0.05 -> 0.1 | H4: 0.79
A5: time in period (secs) | C5: t | D5: s | E5: =IF(D4="years",E4*365*24*3600,IF(D4="months",E4*30.4*24*3600,IF(D4="weeks",E4*7*24*3600))) -> 31536000 | G5: =G4+0.05 -> 0.15 | H5: 0.88
G6: =G5+0.05 -> 0.2 | H6: 0.96
A7: Rotor data | G7: 0.25 | H7: 1
A8: number of rotors | C8: B | D8: m | E8: 1 | G8: 0.3 | H8: 0.98
A9: rotor diameter (c/f) | C9: 2R | D9: m | E9: 25 | G9: 0.35 | H9: 0.92
A10: rotor radius | C10: R | D10: m | E10: =E9/2 -> 12.5 | G10: 0.4 | H10: 0.85
A11: number of blades | C11: b | E11: 3 | G11: 0.45 | H11: 0.8
A12: maximum blade width | C12: C | D12: m | E12: 1.5 | G12: 0.5 | H12: 0.75
A13: blade pitch at blade tip | C13: γ | D13: degrees | E13: 5 | G13: 0.55 | H13: 0.7
A14: blade profile | C14: c/C | F14: <-- | G14: 0.6 | H14: 0.64
A15: rotation speed | C15: Ω | D15: rpm | E15: 6.95 | G15: 0.65 | H15: 0.58
A16: % time not operational | C16: nop | E16: 0.124 | G16: 0.7 | H16: 0.52
G17: 0.75 | H17: 0.47
G18: 0.8 | H18: 0.41
A19: Current data | G19: 0.85 | H19: 0.37
A20: mean current speed (m s-1) | C20: vc | D20: m s-1 | E20: 1.82 | G20: 0.9 | H20: 0.3
G21: 0.95 | H21: 0.24
G22: 1 | H22: 0
A23: Animal data
A24: Species (c/f) | I24: harbour porpoise | K24: U-dives harbour seal | M24: grey seal | O24: minke whale | Q24: basking shark | S24: eider | U24: red-throated diver | W24: gannet | Y24: cormorant | AA24: black guillemot | AC24: salmon smolt | AE24: salmon 1SW | AG24: salmon MSW
A25: animal density ar risk depth (c/f) | C25: D | D25: animals m-3 | I25: ='Density (marine animals)'!G25 -> 2.1109051e-10 | K25: ='Density (marine animals)'!I25 -> 3.325417595e-10 | M25: ='Density (marine animals)'!K25 -> 8.619434605e-11 | O25: ='Density (marine animals)'!M25 -> 4.822812615e-11 | Q25: ='Density (marine animals)'!O25 -> 3.609664347e-11 | S25: ='Density (birds)'!G33 -> 5.73981974e-09 | U25: ='Density (birds)'!I33 -> 2.27303626e-10 | W25: ='Density (birds)'!K33 -> 1.281055144e-11 | Y25: ='Density (birds)'!M33 -> 7.576930992e-10 | AA25: ='Density (birds)'!O33 -> 3.604838165e-09 | AC25: ='Density (birds)'!Q33 -> 0 | AE25: ='Density (birds)'!S33 -> 0 | AG25: ='Density (birds)'!U33 -> 0
A26: marine animal or diving bird? | I26: marine animal | K26: marine animal | M26: marine animal | O26: marine animal | Q26: marine animal | S26: diving bird | U26: diving bird | W26: diving bird | Y26: diving bird | AA26: diving bird | AC26: marine animal | AE26: marine animal | AG26: marine animal
A27: length | C27: L | D27: m | I27: 1.48 | K27: 1.41 | M27: 1.86 | O27: 8.8 | Q27: 7 | S27: 0.6 | U27: 0.61 | W27: 0.94 | Y27: 0.9 | AA27: 0.31 | AC27: 0.15 | AE27: 0.67 | AG27: 0.79
A28: wingspan / bodywidth | C28: W | D28: m | I28: 0.32 | K28: 0.34 | M28: 0.42 | O28: =O27/4 -> 2.2 | Q28: =Q27/4 -> 1.75 | S28: 0.94 | U28: 1.11 | W28: 1.72 | Y28: 1.45 | AA28: 0.55 | AC28: 0.02 | AE28: 0.12 | AG28: 0.14
A30: CRM ENCOUNTER RATE
A31: body length used perp to rotor | C31: L' | F31: swap length & width for diving birds | I31: =IF(I26="diving bird",I28,I27) -> 1.48 | K31: =IF(K26="diving bird",K28,K27) -> 1.41 | M31: =IF(M26="diving bird",M28,M27) -> 1.86 | O31: =IF(O26="diving bird",O28,O27) -> 8.8 | Q31: =IF(Q26="diving bird",Q28,Q27) -> 7 | S31: =IF(S26="diving bird",S28,S27) -> 0.94 | U31: =IF(U26="diving bird",U28,U27) -> 1.11 | W31: =IF(W26="diving bird",W28,W27) -> 1.72 | Y31: =IF(Y26="diving bird",Y28,Y27) -> 1.45 | AA31: =IF(AA26="diving bird",AA28,AA27) -> 0.55 | AC31: =IF(AC26="diving bird",AC28,AC27) -> 0.15 | AE31: =IF(AE26="diving bird",AE28,AE27) -> 0.67 | AG31: =IF(AG26="diving bird",AG28,AG27) -> 0.79
A32: body width used in rotor plane | C32: W' | F32: swap length & width for diving birds | I32: =IF(I26="diving bird",I27,I28) -> 0.32 | K32: =IF(K26="diving bird",K27,K28) -> 0.34 | M32: =IF(M26="diving bird",M27,M28) -> 0.42 | O32: =IF(O26="diving bird",O27,O28) -> 2.2 | Q32: =IF(Q26="diving bird",Q27,Q28) -> 1.75 | S32: =IF(S26="diving bird",S27,S28) -> 0.6 | U32: =IF(U26="diving bird",U27,U28) -> 0.61 | W32: =IF(W26="diving bird",W27,W28) -> 0.94 | Y32: =IF(Y26="diving bird",Y27,Y28) -> 0.9 | AA32: =IF(AA26="diving bird",AA27,AA28) -> 0.31 | AC32: =IF(AC26="diving bird",AC27,AC28) -> 0.02 | AE32: =IF(AE26="diving bird",AE27,AE28) -> 0.12 | AG32: =IF(AG26="diving bird",AG27,AG28) -> 0.14
A33: speed of approach used | C33: vc | D33: m s-1 | F33: vc | I33: =$E20 -> 1.82 | K33: =$E20 -> 1.82 | M33: =$E20 -> 1.82 | O33: =$E20 -> 1.82 | Q33: =$E20 -> 1.82 | S33: =$E20 -> 1.82 | U33: =$E20 -> 1.82 | W33: =$E20 -> 1.82 | Y33: =$E20 -> 1.82 | AA33: =$E20 -> 1.82 | AC33: =$E20 -> 1.82 | AE33: =$E20 -> 1.82 | AG33: =$E20 -> 1.82
A34: total frontal area | D34: m2 | F34: Bπ(R+0.5W')2 | I34: =$E8*PI()*($E10+0.5*I32)*($E10+0.5*I32) -> 503.5206475 | K34: =$E8*PI()*($E10+0.5*K32)*($E10+0.5*K32) -> 504.3164129 | M34: =$E8*PI()*($E10+0.5*M32)*($E10+0.5*M32) -> 507.5057578 | O34: =$E8*PI()*($E10+0.5*O32)*($E10+0.5*O32) -> 581.0689772 | Q34: =$E8*PI()*($E10+0.5*Q32)*($E10+0.5*Q32) -> 562.0014733 | S34: =$E8*PI()*($E10+0.5*S32)*($E10+0.5*S32) -> 514.7185404 | U34: =$E8*PI()*($E10+0.5*U32)*($E10+0.5*U32) -> 515.1207428 | W34: =$E8*PI()*($E10+0.5*W32)*($E10+0.5*W32) -> 528.4815436 | Y34: =$E8*PI()*($E10+0.5*Y32)*($E10+0.5*Y32) -> 526.852942 | AA34: =$E8*PI()*($E10+0.5*AA32)*($E10+0.5*AA32) -> 503.1230004 | AC34: =$E8*PI()*($E10+0.5*AC32)*($E10+0.5*AC32) -> 491.6595644 | AE34: =$E8*PI()*($E10+0.5*AE32)*($E10+0.5*AE32) -> 495.5975508 | AG34: =$E8*PI()*($E10+0.5*AG32)*($E10+0.5*AG32) -> 496.3870331
A35: encounter probability for single transit | C35: pcoll | F35: pcoll | I35: =pcoll_diskav("down",I31,I32,I33) -> 0.3210227787 | K35: =pcoll_diskav("down",K31,K32,K33) -> 0.3076573908 | M35: =pcoll_diskav("down",M31,M32,M33) -> 0.3935776949 | O35: =pcoll_diskav("down",O31,O32,O33) -> 1 | Q35: =pcoll_diskav("down",Q31,Q32,Q33) -> 1 | S35: =pcoll_diskav("down",S31,S32,S33) -> 0.21980986 | U35: =pcoll_diskav("down",U31,U32,U33) -> 0.2518581748 | W35: =pcoll_diskav("down",W31,W32,W33) -> 0.3691019118 | Y35: =pcoll_diskav("down",Y31,Y32,Y33) -> 0.318017453 | AA35: =pcoll_diskav("down",AA31,AA32,AA33) -> 0.1442470998 | AC35: =pcoll_diskav("down",AC31,AC32,AC33) -> 0.06708046049 | AE35: =pcoll_diskav("down",AE31,AE32,AE33) -> 0.1663661748 | AG35: =pcoll_diskav("down",AG31,AG32,AG33) -> 0.1892782599
A36: no of rotor transits per second | D36: s-1 | F36: D Bπ(R+0.5W')2 vc | I36: =I25*I34*I33 -> 1.934449431e-07 | K36: =K25*K34*K33 -> 3.052254065e-07 | M36: =M25*M34*M33 -> 7.961431098e-08 | O36: =O25*O34*O33 -> 5.100343964e-08 | Q36: =Q25*Q34*Q33 -> 3.692118759e-08 | S36: =S25*S34*S33 -> 5.376992782e-06 | U36: =U25*U34*U33 -> 2.13101639e-07 | W36: =W25*W34*W33 -> 1.23216548e-08 | Y36: =Y25*Y34*Y33 -> 7.265309659e-07 | AA36: =AA25*AA34*AA33 -> 3.300892128e-06
A37: encounter rate (per sec) before avoidance | C37: CCRM | F37: D(Bπ(R+0.5W')2 vc pcoll | I37: =I36*I35 -> 6.210023316e-08 | K37: =K36*K35 -> 9.390485218e-08 | M37: =M36*M35 -> 3.133441699e-08 | O37: =O36*O35 -> 5.100343964e-08 | Q37: =Q36*Q35 -> 3.692118759e-08 | S37: =S36*S35 -> 1.181916031e-06 | U37: =U36*U35 -> 5.367138985e-08 | W37: =W36*W35 -> 4.547946342e-09 | Y37: =Y36*Y35 -> 2.310495273e-07 | AA37: =AA36*AA35 -> 4.761441161e-07
A38: no of rotor transits in period | F38: D Bπ(R+0.5W')2 vc(1-nop)t | I38: =I36*(1-$E16)*$E5 -> 5.344020239 | K38: =K36*(1-$E16)*$E5 -> 8.432015455 | M38: =M36*(1-$E16)*$E5 -> 2.199388014 | O38: =O36*(1-$E16)*$E5 -> 1.408997358 | Q38: =Q36*(1-$E16)*$E5 -> 1.019967597 | S38: =S36*(1-$E16)*$E5 -> 148.5423077 | U38: =U36*(1-$E16)*$E5 -> 5.887047 | W38: =W36*(1-$E16)*$E5 -> 0.3403923182 | Y38: =Y36*(1-$E16)*$E5 -> 20.07080735 | AA38: =AA36*(1-$E16)*$E5 -> 91.18891432
A39: collisions in period before avoidance | D39: animals | F39: CCRM (1-nop) t | I39: =I37*$E5*(1-$E16) -> 1.715552227 | K39: =K37*$E5*(1-$E16) -> 2.594171874 | M39: =M37*$E5*(1-$E16) -> 0.8656300647 | O39: =O37*$E5*(1-$E16) -> 1.408997358 | Q39: =Q37*$E5*(1-$E16) -> 1.019967597 | S39: =S37*$E5*(1-$E16) -> 32.65106385 | U39: =U37*$E5*(1-$E16) -> 1.482700912 | W39: =W37*$E5*(1-$E16) -> 0.1256394554 | Y39: =Y37*$E5*(1-$E16) -> 6.382867034 | AA39: =AA37*$E5*(1-$E16) -> 13.15373642
A40: ratio CRM/ERM | I40: =I39/ERM!H35 -> 1.089793123 | K40: =K39/ERM!J35 -> 1.051671036 | M40: =M39/ERM!L35 -> 1.16238424 | O40: =O39/ERM!N35 -> 0.9557676 | Q40: =Q39/ERM!P35 -> 1.218006724 | S40: =S39/ERM!T35 -> 0.8688666749 | U40: =U39/ERM!V35 -> 0.9283326548 | W40: =W39/ERM!X35 -> 0.7796069658 | Y40: =Y39/ERM!Z35 -> 1.05370222 | AA40: =AA39/ERM!AB35 -> 0.5761629815
AB41: no of salmon through channel | AC41: 6607314 | AE41: 244969 | AG41: 182672
AB42: proportion at risk depth | AC42: ='Density (marine animals)'!Q24 -> 0.1607787013 | AE42: ='Density (marine animals)'!Q24 -> 0.1607787013 | AG42: ='Density (marine animals)'!Q24 -> 0.1607787013
AB43: no of salmon at risk depth | AC43: =AC42*AC41 -> 1062315.364 | AE43: =AE42*AE41 -> 39385.79768 | AG43: =AG42*AG41 -> 29369.76692
AB44: channel width | AC44: 7000 | AE44: 7000 | AG44: 7000
AB45: rotor transits in year | AC45: =AC43*AC34/($E9*AC44) -> 2984.557195 | AE45: =AE43*AE34/($E9*AE44) -> 111.5400278 | AG45: =AG43*AG34/($E9*AG44) -> 83.30726552
AB46: rotor transits while operational | AC46: =AC45*(1-$E16) -> 2614.472103 | AE46: =AE45*(1-$E16) -> 97.70906437 | AG46: =AG45*(1-$E16) -> 72.97716459
AB47: collisions before avoidance | AC47: =AC46*AC35 -> 175.3799926 | AE47: =AE46*AE35 -> 16.25548328 | AG47: =AG46*AG35 -> 13.81299072

Sheet ETPM
A1: ETPM | C1: from previous sheets | D1: turbine data | E1: animal data | F1: intermediate results | G1: results
A3: Period data | G3: Jan | H3: Feb | I3: Mar | J3: Apr | K3: May | L3: Jun | M3: Jul | N3: Aug | O3: Sep | P3: Oct | Q3: Nov | R3: Dec | T3: all year
A4: Period (days) | D4: days | G4: 31 | H4: 28 | I4: 31 | J4: 30 | K4: 31 | L4: 30 | M4: 31 | N4: 31 | O4: 30 | P4: 31 | Q4: 30 | R4: 31 | T4: =SUM(G4:R4) -> 365
A5: Period (seconds) | C5: t | D5: s | F5: days * 24*3600 | G5: =G4*24*3600 -> 2678400 | H5: 2419200 | I5: 2678400 | J5: 2592000 | K5: 2678400 | L5: 2592000 | M5: 2678400 | N5: 2678400 | O5: 2592000 | P5: 2678400 | Q5: 2592000 | R5: 2678400 | T5: 31536000
A7: Rotor data
A8: area of site | C8: Asite | D8: m2 | E8: 1000000
A9: number of rotors | C9: B | D9: m | E9: 100
A10: rotor diameter | C10: 2R | D10: m | E10: 20 | F10: (c/f)
A11: rotor radius | C11: R | D11: m | E11: =E10/2 -> 10
A12: number of blades | C12: b | E12: 3
A13: rotor width from front to back | C13: w | D13: m | E13: 0.5
A14: % time not operational | C14: nop | E14: 0
A16: Animal data
A17: species name | G17: European shag
A18: target population | C18: N | E18: 1181 | G18: 1181 | H18: 1181 | I18: 1181 | J18: 1181 | K18: 775 | L18: 775 | M18: 775 | N18: 1181 | O18: 1181 | P18: 1181 | Q18: 1181 | R18: 1181
A19: number on site | G19: 14 | H19: 9.9 | I19: 18 | J19: 7.5 | K19: 10 | L19: 6.4 | M19: 14.1 | N19: 12.3 | O19: 13.9 | P19: 3.6 | Q19: 12.4 | R19: 2.2
A20: proportion foraging on site | C20: P | F20: number on site/N | G20: =G19/G18 -> 0.01185436071 | H20: =H19/H18 -> 0.008382726503 | I20: 0.01524132091 | J20: 0.006350550381 | K20: 0.01290322581 | L20: 0.008258064516 | M20: 0.01819354839 | N20: 0.01041490262 | O20: 0.01176968671 | P20: 0.003048264183 | Q20: 0.01049957663 | R20: 0.001862828112
A21: critical added mortality | C21: n | E21: 60
A22: length | C22: L | D22: m | E22: 0.72
A25: EXPOSURE TIME
A27: prop of time at risk depth per bird on site | C27: Q2R | F27: FH | G27: ='Density (birds)'!$Q31 -> 0.00746352413 | H27: ='Density (birds)'!$Q31 -> 0.00746352413 | I27: ='Density (birds)'!$Q31 -> 0.00746352413 | J27: ='Density (birds)'!$Q31 -> 0.00746352413 | K27: ='Density (birds)'!$Q31 -> 0.00746352413 | L27: ='Density (birds)'!$R31 -> 0.02239057239 | M27: ='Density (birds)'!$R31 -> 0.02239057239 | N27: ='Density (birds)'!$Q31 -> 0.00746352413 | O27: ='Density (birds)'!$Q31 -> 0.00746352413 | P27: ='Density (birds)'!$Q31 -> 0.00746352413 | Q27: ='Density (birds)'!$Q31 -> 0.00746352413 | R27: ='Density (birds)'!$Q31 -> 0.00746352413
A28: volume of sea at risk depth | D28: m3 | E28: =($E$10+$E$22)*$E$8 -> 20720000 | F28: (2R+L)*Asite
A29: rotor swept volume | C29: Vrotor | D29: m3 | E29: =$E$9*PI()*($E$11+0.5*$E$22)*($E$11+0.5*$E$22)*($E$13+$E$22) -> 41136.67771 | F29: B π(R+0.5L)2 (w+L)
A30: Vrotor as prop of volume at risk depth | C30: S | E30: =E29/E28 -> 0.001985360893 | F30: B π(R+0.5L) (w+L)/(2*Asite)
A31: individual bird exposure time in Vrotor | C31: T | D31: s | F31: Q2R P S t (1-nop) | G31: =G27*G20*$E$30*G5*(1-$E$14) -> 0.4704754635 | H31: 0.3004972315 | I31: 0.6048970245 | J31: 0.2439100905 | K31: 0.5121027856 | L31: 0.9515200145 | M31: 2.166194783 | N31: 0.4133463 | O31: 0.4520467011 | P31: 0.1209794049 | Q31: 0.403264683 | R31: 0.07393185855 | T31: =SUM(G31:R31) -> 6.713166341
A33: Collision rate
A34: annual exposure time per bird | C34: T | D34: seconds | E34: =T31 -> 6.713166341
A35: critical collision rate per bird exposed | C35: αmax | D35: s-1 | E35: =$E$21/($E$18*T31) -> 0.0075678749 | F35: n/NT
A36: needs one collision every | C36: 1/αmax | D36: seconds | E36: =1/E35 -> 132.1374908

Sheet Avoidance
A4: ERM encounter rates allowing for avoidance
A5: Avoidance rates | B5: =ERM!H20 -> harbour porpoise | C5: =ERM!J20 -> harbour seal | D5: =ERM!L20 -> grey seal | E5: =ERM!N20 -> minke whale | F5: =ERM!P20 -> basking shark | H5: =ERM!T20 -> eider | I5: =ERM!V20 -> red-throated diver | J5: =ERM!X20 -> gannet | K5: =ERM!Z20 -> cormorant | L5: =ERM!AB20 -> black guillemot
A6: 0 | B6: =ERM!H35 -> 1.574199901 | C6: =ERM!J35 -> 2.466714196 | D6: =ERM!L35 -> 0.7447021692 | E6: =ERM!N35 -> 1.474204982 | F6: =ERM!P35 -> 0.8374071973 | H6: =ERM!T35 -> 37.57891147 | I6: =ERM!V35 -> 1.597165525 | J6: =ERM!X35 -> 0.1611574305 | K6: =ERM!Z35 -> 6.057562481 | L6: =ERM!AB35 -> 22.82988814 | N6: from ERM worksheet
A7: 0.5 | B7: =B$6*(1-$A7) -> 0.7870999506 | C7: =C$6*(1-$A7) -> 1.233357098 | D7: 0.3723510846 | E7: 0.7371024912 | F7: 0.4187035987 | H7: =H$6*(1-$A7) -> 18.78945573 | I7: 0.7985827627 | J7: 0.08057871525 | K7: 3.02878124 | L7: 11.41494407
A8: 0.9 | B8: =B$6*(1-$A8) -> 0.1574199901 | C8: 0.2466714196 | D8: 0.07447021692 | E8: 0.1474204982 | F8: 0.08374071973 | H8: 3.757891147 | I8: 0.1597165525 | J8: 0.01611574305 | K8: 0.6057562481 | L8: 2.282988814
A9: 0.95 | B9: =B$6*(1-$A9) -> 0.07870999506 | C9: 0.1233357098 | D9: 0.03723510846 | E9: 0.07371024912 | F9: 0.04187035987 | H9: 1.878945573 | I9: 0.07985827627 | J9: 0.008057871525 | K9: 0.302878124 | L9: 1.141494407
A10: 0.98 | B10: =B$6*(1-$A10) -> 0.03148399802 | C10: 0.04933428392 | D10: 0.01489404338 | E10: 0.02948409965 | F10: 0.01674814395 | H10: 0.7515782294 | I10: 0.03194331051 | J10: 0.00322314861 | K10: 0.1211512496 | L10: 0.4565977629
A11: 0.99 | B11: =B$6*(1-$A11) -> 0.01574199901 | C11: 0.02466714196 | D11: 0.007447021692 | E11: 0.01474204982 | F11: 0.008374071973 | H11: 0.3757891147 | I11: 0.01597165525 | J11: 0.001611574305 | K11: 0.06057562481 | L11: 0.2282988814
A14: CRM collision rates allowing for avoidance
A15: Avoidance rates | B15: =CRM!I24 -> harbour porpoise | C15: =CRM!K24 -> U-dives harbour seal | D15: =CRM!M24 -> grey seal | E15: =CRM!O24 -> minke whale | F15: =CRM!Q24 -> basking shark | H15: =CRM!S24 -> eider | I15: =CRM!U24 -> red-throated diver | J15: =CRM!W24 -> gannet | K15: =CRM!Y24 -> cormorant | L15: =CRM!AA24 -> black guillemot
A16: 0 | B16: =CRM!I39 -> 1.715552227 | C16: =CRM!K39 -> 2.594171874 | D16: =CRM!M39 -> 0.8656300647 | E16: =CRM!O39 -> 1.408997358 | F16: =CRM!Q39 -> 1.019967597 | H16: =CRM!S39 -> 32.65106385 | I16: =CRM!U39 -> 1.482700912 | J16: =CRM!W39 -> 0.1256394554 | K16: =CRM!Y39 -> 6.382867034 | L16: =CRM!AA39 -> 13.15373642 | N16: from CRM worksheet
A17: 0.5 | B17: =B$16*(1-$A17) -> 0.8577761134 | C17: =C$16*(1-$A17) -> 1.297085937 | D17: 0.4328150324 | E17: 0.704498679 | F17: 0.5099837985 | H17: 16.32553193 | I17: 0.7413504562 | J17: 0.0628197277 | K17: 3.191433517 | L17: 6.57686821
A18: 0.9 | B18: =B$16*(1-$A18) -> 0.1715552227 | C18: 0.2594171874 | D18: 0.08656300647 | E18: 0.1408997358 | F18: 0.1019967597 | H18: 3.265106385 | I18: 0.1482700912 | J18: 0.01256394554 | K18: 0.6382867034 | L18: 1.315373642
A19: 0.95 | B19: =B$16*(1-$A19) -> 0.08577761134 | C19: 0.1297085937 | D19: 0.04328150324 | E19: 0.0704498679 | F19: 0.05099837985 | H19: 1.632553193 | I19: 0.07413504562 | J19: 0.00628197277 | K19: 0.3191433517 | L19: 0.657686821
A20: 0.98 | B20: =B$16*(1-$A20) -> 0.03431104454 | C20: 0.05188343749 | D20: 0.01731260129 | E20: 0.02817994716 | F20: 0.02039935194 | H20: 0.653021277 | I20: 0.02965401825 | J20: 0.002512789108 | K20: 0.1276573407 | L20: 0.2630747284
A21: 0.99 | B21: =B$16*(1-$A21) -> 0.01715552227 | C21: 0.02594171874 | D21: 0.008656300647 | E21: 0.01408997358 | F21: 0.01019967597 | H21: 0.3265106385 | I21: 0.01482700912 | J21: 0.001256394554 | K21: 0.06382867034 | L21: 0.1315373642

Sheet Swim depths
B1: Data drawn from Thompson (2015)
B2: harbour porpoise depths are as a proportion of max dive depth | K2: harbour and grey seal depths are in metres
B3: harbour porpoise | D3: 20-40m | E3: 40-60m | F3: 60-80m | G3: 80-100m | H3: >100m | K3: harbour seal | M3: <20m | N3: 20-30m | O3: 30-40m | Q3: grey seal | T3: <20m | U3: 20-30m | V3: 30-40m | W3: 40-50-m | X3: 50-60m | Y3: >60m
C4: wbin | D4: 40 | E4: 60 | F4: 80 | G4: 100 | H4: 150 | L4: wbin | M4: 20 | N4: 30 | O4: 40 | S4: wbin | T4: 20 | U4: 30 | V4: 40 | W4: 50 | X4: 60 | Y4: 100
A5: dbin | B5: surface | C5: 0 | D5: 0.147 | E5: 0.116 | F5: 0.115 | G5: 0.127 | H5: 0.126 | J5: dbin | K5: surface | L5: 0 | M5: 0.18 | N5: 0.2 | O5: 0.22 | Q5: dbin | R5: surface | S5: 0
A6: 1 | B6: 0-0.05 | C6: 0.05 | D6: 0.053 | E6: 0.087 | F6: 0.153 | G6: 0.149 | H6: 0.253 | J6: 1 | K6: 0-5 | L6: 5 | M6: 0.08 | N6: 0.06 | O6: 0.04 | Q6: 1 | R6: 0-5 | S6: 5 | T6: 0.2 | U6: 0.2 | V6: 0.2 | W6: 0.2 | X6: 0.2 | Y6: 0.2
A7: =A6+1 -> 2 | B7: 0.05-0.10 | C7: 0.1 | D7: 0.033 | E7: 0.162 | F7: 0.167 | G7: 0.143 | H7: 0.176 | J7: 2 | K7: 5-10 | L7: 10 | M7: 0.16 | N7: 0.13 | O7: 0.11 | Q7: 2 | R7: 5-10 | S7: 10 | T7: 0.12 | U7: 0.05 | V7: 0.04 | W7: 0.1 | X7: 0.09 | Y7: 0.09
A8: =A7+1 -> 3 | B8: 0.10-0.15 | C8: 0.15 | D8: 0.033 | E8: 0.136 | F8: 0.104 | G8: 0.1 | H8: 0.109 | J8: 3 | K8: 10-15 | L8: 15 | M8: 0.26 | N8: 0.14 | O8: 0.14 | Q8: 3 | R8: 10-15 | S8: 15 | T8: 0.14 | U8: 0.01 | V8: 0.05 | W8: 0.1 | X8: 0.16 | Y8: 0.11
A9: 4 | B9: 0.15-0.20 | C9: 0.2 | D9: 0.042 | E9: 0.066 | F9: 0.052 | G9: 0.096 | H9: 0.071 | J9: 4 | K9: 15-20 | L9: 20 | M9: 0.32 | N9: 0.11 | O9: 0.09 | Q9: 4 | R9: 15-20 | S9: 20 | T9: 0.19 | U9: 0.12 | V9: 0.08 | W9: 0.1 | X9: 0.12 | Y9: 0.1
A10: 5 | B10: 0.20-0.25 | C10: 0.25 | D10: 0.044 | E10: 0.045 | F10: 0.051 | G10: 0.082 | H10: 0.064 | J10: 5 | K10: 20-25 | L10: 25 | N10: 0.24 | O10: 0.07 | Q10: 5 | R10: 20-25 | S10: 25 | T10: 0.34 | U10: 0.27 | V10: 0.09 | W10: 0.07 | X10: 0.11 | Y10: 0.11
A11: 6 | B11: 0.25-30 | C11: 0.3 | D11: 0.039 | E11: 0.051 | F11: 0.052 | G11: 0.088 | H11: 0.049 | J11: 6 | K11: 25-30 | L11: 30 | N11: 0.12 | O11: 0.19 | Q11: 6 | R11: 25-30 | S11: 30 | U11: 0.22 | V11: 0.1 | W11: 0.07 | X11: 0.05 | Y11: 0.08
A12: 7 | B12: 0.30-0.35 | C12: 0.35 | D12: 0.066 | E12: 0.042 | F12: 0.042 | G12: 0.066 | H12: 0.035 | J12: 7 | K12: 30-35 | L12: 35 | O12: 0.12 | Q12: 7 | R12: 30-35 | S12: 35 | U12: 0.05 | V12: 0.19 | W12: 0.07 | X12: 0.05 | Y12: 0.06
A13: 8 | B13: 0.35-0.40 | C13: 0.4 | D13: 0.066 | E13: 0.044 | F13: 0.039 | G13: 0.043 | H13: 0.024 | J13: 8 | K13: 35-40 | L13: 40 | O13: 0.02 | Q13: 8 | R13: 35-40 | S13: 40 | V13: 0.19 | W13: 0.07 | X13: 0.03 | Y13: 0.04
A14: 9 | B14: 0.40-0.45 | C14: 0.45 | D14: 0.077 | E14: 0.056 | F14: 0.033 | G14: 0.029 | H14: 0.021 | J14: 9 | K14: >40 | L14: 100 | Q14: 9 | R14: 40-45 | S14: 45 | V14: 0.06 | W14: 0.07 | X14: 0.03 | Y14: 0.04
A15: 10 | B15: 0.45-0.50 | C15: 0.5 | D15: 0.077 | E15: 0.05 | F15: 0.028 | G15: 0.017 | H15: 0.02 | K15: metres | L15: totals: | M15: 1 | N15: =SUM(N5:N12) -> 1 | O15: =SUM(O5:O13) -> 1 | Q15: 10 | R15: 45-50 | S15: 50 | W15: 0.07 | X15: 0.03 | Y15: 0.02
A16: 11 | B16: 0.50-0.55 | C16: 0.55 | D16: 0.055 | E16: 0.034 | F16: 0.024 | G16: 0.013 | H16: 0.012 | Q16: 11 | R16: 50-55 | S16: 55 | W16: 0.06 | X16: 0.03 | Y16: 0.02
A17: 12 | B17: 0.55-0.60 | C17: 0.6 | D17: 0.057 | E17: 0.029 | F17: 0.022 | G17: 0.009 | H17: 0.009 | K17: Data for <20m estimated | Q17: 12 | R17: 55-60 | S17: 60 | X17: 0.04 | Y17: 0.02
A18: 13 | B18: 0.60-0.65 | C18: 0.65 | D18: 0.046 | E18: 0.023 | F18: 0.022 | G18: 0.013 | H18: 0.007 | Q18: 13 | R18: 60-65 | S18: 65 | X18: 0.05 | Y18: 0.03
A19: 14 | B19: 0.65-0.70 | C19: 0.7 | D19: 0.031 | E19: 0.016 | F19: 0.021 | G19: 0.006 | H19: 0.008 | Q19: 14 | R19: 65-70 | S19: 70 | Y19: 0.03
A20: 15 | B20: 0.70-0.75 | C20: 0.75 | D20: 0.039 | E20: 0.006 | F20: 0.014 | G20: 0.004 | H20: 0.003 | Q20: 15 | R20: 70-75 | S20: 75 | Y20: 0.03
A21: 16 | B21: 0.75-0.80 | C21: 0.8 | D21: 0.02 | E21: 0.006 | F21: 0.015 | G21: 0.002 | H21: 0.003 | Q21: 16 | R21: >75 | S21: 80 | Y21: 0.01
A22: 17 | B22: 0.80-0.85 | C22: 0.85 | D22: 0.009 | E22: 0.01 | F22: 0.01 | G22: 0.002 | H22: 0.002 | R22: metres
A23: 18 | B23: 0.85-0.90 | C23: 0.9 | D23: 0.002 | E23: 0.007 | F23: 0.01 | G23: 0.001 | H23: 0.002 | S23: totals: | T23: =SUM(T6:T21) -> 0.99 | U23: 0.92 | V23: 1 | W23: 0.98 | X23: 0.99 | Y23: 0.99
A24: 19 | B24: 0.90-0.95 | C24: 0.95 | D24: 0.009 | E24: 0.003 | F24: 0.008 | G24: 0.001 | H24: 0.002
A25: =A24+1 -> 20 | B25: 0.95-1.00 | C25: 1 | D25: 0.057 | E25: 0.01 | F25: 0.021 | G25: 0.008 | H25: 0.005
B26: prop of max depth
C27: totals: | D27: =SUM(D5:D25) -> 1.002 | E27: =SUM(E5:E25) -> 0.999 | F27: =SUM(F5:F25) -> 1.003 | G27: =SUM(G5:G25) -> 0.999 | H27: =SUM(H5:H25) -> 1.001
A29: Check routine:
B30: Species: | D30: harbour porpoise | F30: Use this routine to explore values of Q2R:
B31: Water depth | D31: 35 | F31: the calculations in this box do not affect
B32: Min depth of turbine | D32: 8 | F32: the main calculations
B33: Max depth of turbine | D33: 25
B34: Flag | D34: 1
B36: Q2R | D36: =Q2R2(D30,D31,D32,D33) -> 0.5440000296
D37: 0.544, 0.344, 0.236

Sheet Sheet1
